Workbook

Sheet ORÇAMENTO
A1: <---- NUMERAR SERVIÇOS PARA CPU | C1: Ministério do Desenvolvimento Regional
C2: Companhia de Desenvolvimento dos Vales do São Francisco e do Parnaíba
C3: 1ª Superintendência Regional
B5: OBRA: | C5: PAVIMENTAÇÃO ASFÁLTICA EM CBUQ – AVENIDA SANITÁRIA (BONFIM / MG) - LOTE 3
B6: DATA: | C6: AGOSTO / 2023 | G6: BDI Serviços: | I6: ='BDI SERV'!D31/100 -> 0.2332
B7: PRAZO DE EXECUÇÃO: 120 DIAS | G7: BDI Serviços: | I7: ='BDI FORN'!D31/100 -> 0.15
B8: ITEM | C8: DISCRIMINAÇÃO | D8: REFER. | E8: UNID. | F8: QUANT. | G8: P. UNITÁRIO | H8: P.UNIT.C/ BDI | I8: P. TOTAL
A9: A | B9: 1 | C9: SERVIÇOS PRELIMINARES | I9: =SUM(I10:I14) -> 125004.35
A10: 1 | B10: 1.1 | C10: MOBILIZAÇÃO E DESMOBILIZAÇÃO | D10: CPU.1 | E10: GL | F10: 1 | G10: =VLOOKUP(A10,CPU!$A$1:$N$4703,9) -> 9018.26 | H10: =VLOOKUP(A10,CPU!$A$1:$N$4703,10) -> 11121.32 | I10: =ROUND(F10*H10,2) -> 11121.32
A11: 2 | B11: 1.2 | C11: ADMINISTRAÇÃO LOCAL | D11: CPU.2 | E11: GL | F11: 1 | G11: =VLOOKUP(A11,CPU!$A$1:$N$4703,9) -> 75821.28 | H11: =VLOOKUP(A11,CPU!$A$1:$N$4703,10) -> 93502.8 | I11: =ROUND(F11*H11,2) -> 93502.8
A12: 3 | B12: 1.3 | C12: CANTEIRO DE OBRAS | D12: CPU.3 | E12: GL | F12: 1 | G12: =VLOOKUP(A12,CPU!$A$1:$N$4703,9) -> 13246.36 | H12: =VLOOKUP(A12,CPU!$A$1:$N$4703,10) -> 16335.41 | I12: =ROUND(F12*H12,2) -> 16335.41
A13: 4 | B13: 1.4 | C13: PLACA DE OBRA EM CHAPA DE AÇO GALVANIZADO | D13: 103689 | E13: M2 | F13: 3 | G13: =VLOOKUP(A13,CPU!$A$1:$N$4703,9) -> 339.72 | H13: =VLOOKUP(A13,CPU!$A$1:$N$4703,10) -> 418.94 | I13: =ROUND(F13*H13,2) -> 1256.82
A14: 5 | B14: 1.5 | C14: SERVIÇOS TOPOGRÁFICOS PARA PAVIMENTAÇÃO, INCLUSIVE NOTA DE SERVIÇO, ACOMPANHAMENTO E GREIDE | D14: 78472 | E14: M2 | F14: 6800 | G14: =VLOOKUP(A14,CPU!$A$1:$N$4703,9) -> 0.33 | H14: =VLOOKUP(A14,CPU!$A$1:$N$4703,10) -> 0.41 | I14: =ROUND(F14*H14,2) -> 2788
A15: B | B15: 2 | C15: TERRAPLANAGEM E PAVIMENTAÇÃO | I15: =SUM(I16:I23) -> 272070.69
A16: 6 | B16: 2.1 | C16: ESCAVAÇÃO HORIZONTAL EM SOLO DE 1A CATEGORIA | D16: 101116 | E16: M3 | F16: 9900.0025 | G16: =VLOOKUP(A16,CPU!$A$1:$N$4703,9) -> 2.03 | H16: =VLOOKUP(A16,CPU!$A$1:$N$4703,10) -> 2.5 | I16: =ROUND(F16*H16,2) -> 24750.01
A17: 7 | B17: 2.2 | C17: CARGA, MANOBRA E DESCARGA DE SOLOS E MATERIAIS GRANULARES EM CAMINHÃO BASCULANTE | D17: 100976 | E17: M3 | F17: 9900.0025 | G17: =VLOOKUP(A17,CPU!$A$1:$N$4703,9) -> 7.99 | H17: =VLOOKUP(A17,CPU!$A$1:$N$4703,10) -> 9.85 | I17: 97515.02
A18: 7.5 | B18: 2.3 | C18: EXECUÇÃO E COMPACTAÇÃO DE ATERRO COM SOLO PREDOMINANTEMENTE ARGILOSO - EXCLUSIVE SOLO, ESCAVAÇÃO, CARGA E TRANSPORTE | D18: 96385 | E18: M3 | F18: 6999.9975 | G18: =VLOOKUP(A18,CPU!$A$1:$N$4703,9) -> 11.54 | H18: =VLOOKUP(A18,CPU!$A$1:$N$4703,10) -> 14.23 | I18: =ROUND(F18*H18,2) -> 99609.96
A19: 8 | B19: 2.3 | C19: REGULARIZAÇÃO E COMPACTAÇÃO DO SUBLEITO | D19: 100577 | E19: M2 | F19: 4600 | G19: =VLOOKUP(A19,CPU!$A$1:$N$4703,9) -> 1.13 | H19: =VLOOKUP(A19,CPU!$A$1:$N$4703,10) -> 1.39 | I19: 6394
A20: 9 | B20: 2.4 | C20: EXECUÇÃO E COMPACTAÇÃO DE BASE E/OU SUB BASE PARA PAVIMENTAÇÃO DE SOLOS DE COMPORTAMENTO LATERÍTICO - EXCLUSIVE SOLO, ESCAVAÇÃO, CARGA E TRANSPORTE | D20: 96388 | E20: M3 | F20: 920 | G20: =VLOOKUP(A20,CPU!$A$1:$N$4703,9) -> 11.61 | H20: =VLOOKUP(A20,CPU!$A$1:$N$4703,10) -> 14.32 | I20: 13174.4
A21: 10 | B21: 2.5 | C21: IMPRIMAÇÃO COM EMULSÃO ASFÁLTICA (EAI) | D21: 96401 | E21: M2 | F21: 4600 | G21: =VLOOKUP(A21,CPU!$A$1:$N$4703,9) -> 1.12 | H21: =VLOOKUP(A21,CPU!$A$1:$N$4703,10) -> 1.38 | I21: 6348
A22: 11 | B22: 2.6 | C22: PINTURA DE LIGAÇÃO COM EMULSÃO ASFÁLTICA RR-1C | D22: 96402 | E22: M2 | F22: 4200 | G22: =VLOOKUP(A22,CPU!$A$1:$N$4703,9) -> 0.93 | H22: =VLOOKUP(A22,CPU!$A$1:$N$4703,10) -> 1.15 | I22: 4830
A23: 12 | B23: 2.7 | C23: EXECUÇÃO DE PAVIMENTO COM APLICAÇÃO DE CONCRETO ASFÁLTICO USINADO A QUENTE (CBUQ), CAMADA DE ROLAMENTO - EXCLUSIVE TRANSPORTE | D23: 95995 | E23: M3 | F23: 130 | G23: =VLOOKUP(A23,CPU!$A$1:$N$4703,9) -> 121.32 | H23: =VLOOKUP(A23,CPU!$A$1:$N$4703,10) -> 149.61 | I23: 19449.3
A24: C | B24: 3 | C24: TRANSPORTE DE MATERIAIS | I24: =SUM(I25:I26) -> 104665
A25: 13 | B25: 3.1 | C25: TRANSPORTE COM CAMINHÃO BASCULANTE, EM VIA URBANA PAVIMENTADA | D25: 95877 | E25: M3XKM | F25: 51999.99775 | G25: =VLOOKUP(A25,CPU!$A$1:$N$4703,9) -> 1.61 | H25: =VLOOKUP(A25,CPU!$A$1:$N$4703,10) -> 1.99 | I25: =ROUND(F25*H25,2) -> 103480
A26: 14 | B26: 3.2 | C26: TRANSPORTE COM CAMINHÃO CARROCERIA 9T, EM VIA URBANA PAVIMENTADA | D26: 100947 | E26: TXKM | F26: 500.0000896 | G26: =VLOOKUP(A26,CPU!$A$1:$N$4703,9) -> 1.92 | H26: =VLOOKUP(A26,CPU!$A$1:$N$4703,10) -> 2.37 | I26: =ROUND(F26*H26,2) -> 1185
A27: D | B27: 4 | C27: TRANSPORTE DE MATERIAL ASFÁLTICO (BDI DIFERENCIADO) | I27: =SUM(I28:I29) -> 22824
A28: 15 | B28: 4.1 | C28: TRANSPORTE DE MASSA ASFÁLTICA COM CAMINHÃO BASCULANTE, EM VIA URBANA PAVIMENTADA (BDI DIFERENCIADO) | D28: 95427 | E28: TXKM | F28: 30000 | G28: =VLOOKUP(A28,CPU!$A$1:$N$4703,9) -> 0.65 | H28: =VLOOKUP(A28,CPU!$A$1:$N$4703,10) -> 0.75 | I28: =ROUND(F28*H28,2) -> 22500
A29: 16 | B29: 4.2 | C29: TRANSPORTE COM CAMINHÃO TANQUE DE TRANSPORTE DE MATERIAL ASFÁLTICO DE 30000 L, EM VIA URBANA PAVIMENTADA (BDI DIFERENCIADO) | D29: 102331 | E29: TXKM | F29: 600 | G29: =VLOOKUP(A29,CPU!$A$1:$N$4703,9) -> 0.47 | H29: =VLOOKUP(A29,CPU!$A$1:$N$4703,10) -> 0.54 | I29: =ROUND(F29*H29,2) -> 324
A30: E | B30: 5 | C30: OBRAS COMPLEMENTARES | I30: =SUM(I31:I35) -> 214881.32
A31: 17 | B31: 5.1 | C31: GUIA (MEIO-FIO) E SARJETA CONJUGADOS DE CONCRETO, MOLDADA IN LOCO EM TRECHO RETO COM EXTRUSORA, 45 CM BASE (15 CM BASE DA GUIA + 30 CM BASE DA SARJETA) X 22 CM ALTURA. AF_06/2016 | D31: 94267 | E31: M | F31: 1200 | G31: =VLOOKUP(A31,CPU!$A$1:$N$4703,9) -> 57.37 | H31: =VLOOKUP(A31,CPU!$A$1:$N$4703,10) -> 70.75 | I31: =ROUND(F31*H31,2) -> 84900
A32: 18 | B32: 5.2 | C32: EXECUÇÃO DE PASSEIO (CALÇADA) OU PISO DE CONCRETO COM CONCRETO MOLDADO IN LOCO, ACABAMENTO CONVENCIONAL, NÃO ARMADO | D32: 94990 | E32: M3 | F32: 120 | G32: =VLOOKUP(A32,CPU!$A$1:$N$4703,9) -> 766.74 | H32: =VLOOKUP(A32,CPU!$A$1:$N$4703,10) -> 945.54 | I32: 113464.8
A33: 19 | B33: 5.3 | C33: FORNECIMENTO E INSTALAÇÃO DE PLACA DE SINALIZAÇÃO VIÁRIA - REGULAMENTAÇÃO (FAIXA DE PEDESTRE E OUTROS) | D33: CPU.4 | E33: UN. | F33: 6 | G33: =VLOOKUP(A33,CPU!$A$1:$N$4703,9) -> 422.66 | H33: =VLOOKUP(A33,CPU!$A$1:$N$4703,10) -> 521.22 | I33: 3127.32
A34: 20 | B34: 5.4 | C34: PINTURA DE FAIXA DE PEDESTRE OU ZEBRADA TINTA RETRORREFLETIVA A BASE DE RESINA ACRÍLICA COM MICROESFERAS DE VIDRO, E = 30 CM, APLICAÇÃO MANUAL | D34: 102509 | E34: M2 | F34: 56 | G34: =VLOOKUP(A34,CPU!$A$1:$N$4703,9) -> 25.5 | H34: =VLOOKUP(A34,CPU!$A$1:$N$4703,10) -> 31.45 | I34: 1761.2
A35: 22 | B35: 5.5 | C35: PINTURA DE EIXO VIÁRIO SOBRE ASFALTO COM TINTA RETRORREFLETIVA A BASE DE RESINA ACRÍLICA COM MICROESFERAS DE VIDRO, APLICAÇÃO MECÂNICA COM DEMARCADORA AUTOPROPELIDA - ESPESSURA DE 0,10 MM | D35: 102512 | E35: M | F35: 1700 | G35: =VLOOKUP(A35,CPU!$A$1:$N$4703,9) -> 5.55 | H35: =VLOOKUP(A35,CPU!$A$1:$N$4703,10) -> 6.84 | I35: 11628
A36: F | B36: 6 | C36: FORNECIMENTOS - MATERIAL ASFÁLTICO (BDI DIFERENCIADO) | I36: =SUM(I37:I39) -> 242972.93
A37: 23 | B37: 6.1 | C37: AQUISIÇÃO DE EMULSÃO ASFÁLTICA PARA IMPRIMAÇÃO (EAI) - EXCLUSIVE TRANSPORTE | D37: CPU.7 | E37: T | F37: 6.5 | G37: =VLOOKUP(A37,CPU!$A$1:$N$4703,9) -> 2812.65 | H37: =VLOOKUP(A37,CPU!$A$1:$N$4703,10) -> 3234.55 | I37: =ROUND(F37*H37,2) -> 21024.58
A38: 24 | B38: 6.2 | C38: AQUISIÇÃO DE EMULSAO ASFALTICA CATIONICA RR-1C - EXCLUSIVE TRANSPORTE | D38: CPU.8 | E38: T | F38: 2.1 | G38: =VLOOKUP(A38,CPU!$A$1:$N$4703,9) -> 2736.39 | H38: =VLOOKUP(A38,CPU!$A$1:$N$4703,10) -> 3146.85 | I38: =ROUND(F38*H38,2) -> 6608.39
A39: 25 | B39: 6.3 | C39: AQUISIÇÃO DE CONCRETO BETUMINOSO USINADO A QUENTE (CBUQ) PARA PAVIMENTACAO ASFALTICA, PADRAO DNIT, FAIXA C, COM CAP 50/70 - EXCLUSIVE TRANSPORTE | D39: CPU.9 | E39: T | F39: 350.004 | G39: =VLOOKUP(A39,CPU!$A$1:$N$4703,9) -> 535 | H39: =VLOOKUP(A39,CPU!$A$1:$N$4703,10) -> 615.25 | I39: =ROUND(F39*H39,2) -> 215339.96
B40: TOTAL GERAL DA OBRA COM BDI | I40: =SUM(I9,I15,I24,I30,I36,I27) -> 982418.29

Sheet CPU
A1: 1 | B1: CODEVASF | E1: COMPOSIÇÃO DE PREÇO UNITÁRIO | I1: =H11 -> 9018.26 | J1: =H13 -> 11121.32 | K1: BDI CALCULADO: | M1: =ORÇAMENTO!I6 -> 0.2332
B2: OBRA: | C2: =ORÇAMENTO!C5 -> PAVIMENTAÇÃO ASFÁLTICA EM CBUQ – AVENIDA SANITÁRIA (BONFIM / MG) - LOTE 3 | G2: DATA: | H2: =ORÇAMENTO!C6 -> AGOSTO / 2023 | K2: BDI DIFERENCIADO: | M2: ='BDI FORN'!D31/100 -> 0.15
B3: SERVIÇO: | C3: =VLOOKUP(A1,ORÇAMENTO!A10:I31,3) -> MOBILIZAÇÃO E DESMOBILIZAÇÃO | E3: Referência: | F3: =VLOOKUP(A1,ORÇAMENTO!$A$10:$I$31,4) -> CPU.1 | G3: UNIDADE: | H3: =VLOOKUP(A1,ORÇAMENTO!A10:I31,5) -> GL
B5: TIPO ITEM | C5: CODIGO ITEM | D5: DESCRIÇÃO ITEM | E5: UNIDADE ITEM | F5: COEFICIENTE | G5: PRECO UNITARIO | H5: CUSTO TOTAL
B6: COMPOSICAO | C6: 89876 | D6: CAMINHÃO BASCULANTE 14 M3, COM CAVALO MECÂNICO DE CAPACIDADE MÁXIMA DE TRAÇÃO COMBINADO DE 36000 KG, POTÊNCIA 286 CV, INCLUSIVE SEMIREBOQUE COM CAÇAMBA METÁLICA | E6: CHP DIURNO. | F6: 16 | G6: 286.2 | H6: =ROUNDDOWN(F6*G6,2) -> 4579.2
B7: COMPOSICAO | C7: 89877 | D7: CAMINHÃO BASCULANTE 14 M3, COM CAVALO MECÂNICO DE CAPACIDADE MÁXIMA DE TRAÇÃO COMBINADO DE 36000 KG, POTÊNCIA 286 CV, INCLUSIVE SEMIREBOQUE COM CAÇAMBA METÁLICA | E7: CHI DIURNO. | F7: 16 | G7: 82.81 | H7: =ROUNDDOWN(F7*G7,2) -> 1324.96
B8: COMPOSICAO | C8: 5914640 | D8: TRANSPORTE COM CAVALO MECÂNICO COM SEMIRREBOQUE COM CAPACIDADE DE 30 T - RODOVIA PAVIMENTADA | E8: T.KM | F8: 4354 | G8: 0.57 | H8: =ROUNDDOWN(F8*G8,2) -> 2481.78
B9: COMPOSIÇÃO | C9: 88316 | D9: SERVENTE COM ENCARGOS COMPLEMENTARES | E9: H | F9: 32 | G9: 19.76 | H9: =ROUNDDOWN(F9*G9,2) -> 632.32
B10: PRODUÇÃO DA EQUIPE | E10: 1 | F10: CUSTO | H10: =SUM(H6:H9) -> 9018.26
B11: TOTAL | H11: =H10/E10 -> 9018.26 | I11: OK
B12: BDI % | H12: =1+$M$1 -> 1.2332
B13: TOTAL DO SERVIÇO - R$ | H13: =ROUND(H11*H12,2) -> 11121.32
A15: 2 | B15: CODEVASF | E15: COMPOSIÇÃO DE PREÇO UNITÁRIO | I15: =H30 -> 75821.28 | J15: =H32 -> 93502.8
B16: OBRA: | C16: =$C$2 -> PAVIMENTAÇÃO ASFÁLTICA EM CBUQ – AVENIDA SANITÁRIA (BONFIM / MG) - LOTE 3 | G16: DATA: | H16: =$H$2 -> AGOSTO / 2023
B17: SERVIÇO: | C17: =VLOOKUP(A15,ORÇAMENTO!$A$10:$I$31,3) -> ADMINISTRAÇÃO LOCAL | E17: SINAPI | F17: =VLOOKUP(A15,ORÇAMENTO!$A$10:$I$31,4) -> CPU.2 | G17: UNIDADE: | H17: =VLOOKUP(A15,ORÇAMENTO!$A$10:$I$31,5) -> GL
B19: TIPO ITEM | C19: CODIGO ITEM | D19: DESCRIÇÃO ITEM | E19: UNIDADE ITEM | F19: COEFICIENTE | G19: PRECO UNITARIO | H19: CUSTO TOTAL
B20: INSUMO | C20: 14250 | D20: ENERGIA ELÉTRICA | E20: kwh | F20: 60 | G20: 0.95 | H20: =ROUNDDOWN(F20*G20,2) -> 57
B21: INSUMO | C21: 44480 | D21: TARIFA "A" - ÁGUA/ESGOTO | E21: m³ | F21: 6 | G21: 17.97 | H21: 107.82
B22: COTAÇÃO | C22: MERC. | D22: TELEFONE (PLANO CONTROLE) | E22: UNID | F22: 2 | G22: 59.9 | H22: 119.8
B23: INSUMO | C23: ED-50155 SEINFRA | D23: BANHEIRO QUÍMICO 110 X 120 X 230 CM COM MANUTENÇÃO (CONSIDERANDO OBRAS SIMULTÂNEAS) | E23: MÊS | F23: 2 | G23: 515 | H23: 1030
B24: COMPOSICAO | C24: 90777 | D24: Engenheiro Civil Júnior com encargos complementares | E24: H | F24: 55 | G24: 114.12 | H24: 6276.6
B25: COMPOSICAO | C25: 90776 | D25: Encarregado Geral com encargos complementares | E25: H | F25: 110 | G25: 57.73 | H25: 6350.3
B26: COMPOSICAO | C26: 88321 | D26: Tecnico de Laboratório com encargos complementares | E26: H | F26: 55 | G26: 45.45 | H26: 2499.75
B27: COMPOSICAO | C27: 100309 | D27: Tecnico em Segurança do Trabalho com encargos complementares | E27: H | F27: 55 | G27: 45.71 | H27: 2514.05
H28: 0
B29: PRODUÇÃO DA EQUIPE | E29: 0.25 | F29: CUSTO | H29: =SUM(H20:H28) -> 18955.32
B30: TOTAL | H30: =ROUND(H29/E29,2) -> 75821.28 | I30: OK
B31: BDI % | H31: =1+$M$1 -> 1.2332
B32: TOTAL DO SERVIÇO - R$ | H32: =ROUND(H30*H31,2) -> 93502.8
A34: =A15+1 -> 3 | B34: CODEVASF | E34: COMPOSIÇÃO DE PREÇO UNITÁRIO | I34: =H45 -> 13246.36 | J34: =H47 -> 16335.41
B35: OBRA: | C35: =$C$2 -> PAVIMENTAÇÃO ASFÁLTICA EM CBUQ – AVENIDA SANITÁRIA (BONFIM / MG) - LOTE 3 | G35: DATA: | H35: =$H$2 -> AGOSTO / 2023
B36: SERVIÇO: | C36: =VLOOKUP(A34,ORÇAMENTO!$A$10:$I$31,3) -> CANTEIRO DE OBRAS | E36: SINAPI | F36: =VLOOKUP(A34,ORÇAMENTO!$A$10:$I$31,4) -> CPU.3 | G36: UNIDADE: | H36: =VLOOKUP(A34,ORÇAMENTO!$A$10:$I$31,5) -> GL
B38: TIPO ITEM | C38: CODIGO ITEM | D38: DESCRIÇÃO ITEM | E38: UNIDADE ITEM | F38: COEFICIENTE | G38: PRECO UNITARIO | H38: CUSTO TOTAL
B39: INSUMO | C39: 10775 | D39: LOCACAO DE CONTAINER 2,30 X 6,00 M, ALT. 2,50 M, COM 1 SANITARIO, PARA ESCRITORIO, COMPLETO, SEM DIVISORIAS INTERNAS | E39: MÊS | F39: 4 | G39: 995,00 | H39: =ROUNDDOWN(F39*G39,2) -> 3980
B40: INSUMO | C40: 10776 | D40: LOCACAO DE CONTAINER 2,30 X 6,00 M, ALT. 2,50 M, PARA ALMOXARIFADO, SEM DIVISORIAS INTERNAS E SEM SANITARIO | E40: MÊS | F40: 4 | G40: 777.34 | H40: =ROUNDDOWN(F40*G40,2) -> 3109.36
B41: INSUMO | C41: 10779 | D41: LOCACAO DE CONTAINER 2,30 X 4,30 M, ALT. 2,50 M, P/ SANITARIO, C/ 5 BACIAS, 1 LAVATORIO E 4 MICTORIOS | E41: MÊS | F41: 4 | G41: 1234.75 | H41: =ROUNDDOWN(F41*G41,2) -> 4939
B42: INSUMO | C42: 37525 | D42: TELA PLASTICA TECIDA LISTRADA BRANCA E LARANJA, TIPO GUARDA CORPO, EM POLIETILENO MONOFILADO, ROLO 1,20 X 50 M (L X C) | E42: M | F42: 200 | G42: 3.69 | H42: =ROUNDDOWN(F42*G42,2) -> 738
B43: COMPOSICAO | C43: - | D43: PLACA DE SINALIZAÇÃO - "PERIGO - OBRAS A FRENTE" - FORNECIMENTO E MOVIMENTAÇÃO | E43: UNID. | F43: 24 | G43: 20 | H43: =ROUNDDOWN(F43*G43,2) -> 480
B44: PRODUÇÃO DA EQUIPE | E44: 1 | F44: CUSTO | H44: =SUM(H39:H43) -> 13246.36
B45: TOTAL | H45: =H44/E44 -> 13246.36 | I45: OK
B46: BDI % | H46: =1+$M$1 -> 1.2332
B47: TOTAL DO SERVIÇO - R$ | H47: =ROUND(H45*H46,2) -> 16335.41
A49: =A34+1 -> 4 | B49: CODEVASF | E49: COMPOSIÇÃO DE PREÇO UNITÁRIO | I49: =H63 -> 339.72 | J49: =H65 -> 418.94
B50: OBRA: | C50: =$C$2 -> PAVIMENTAÇÃO ASFÁLTICA EM CBUQ – AVENIDA SANITÁRIA (BONFIM / MG) - LOTE 3 | G50: DATA: | H50: =$H$2 -> AGOSTO / 2023
B51: SERVIÇO: | C51: =VLOOKUP(A49,ORÇAMENTO!$A$10:$I$31,3) -> PLACA DE OBRA EM CHAPA DE AÇO GALVANIZADO | E51: SINAPI | F51: =VLOOKUP(A49,ORÇAMENTO!$A$10:$I$31,4) -> 103689 | G51: UNIDADE: | H51: =VLOOKUP(A49,ORÇAMENTO!$A$10:$I$31,5) -> M2
B53: TIPO ITEM | C53: CODIGO ITEM | D53: DESCRIÇÃO ITEM | E53: UNIDADE ITEM | F53: COEFICIENTE | G53: PRECO UNITARIO | H53: CUSTO TOTAL
B54: INSUMO | C54: 4509 | D54: SARRAFO *2,5 X 10* CM EM PINUS, MISTA OU EQUIVALENTE DA REGIAO - BRUTA | E54: M | F54: 3,2083000 | G54: 4,41 | H54: =ROUNDDOWN(F54*G54,2) -> 14.14
B55: INSUMO | C55: 4813 | D55: PLACA DE OBRA (PARA CONSTRUCAO CIVIL) EM CHAPA GALVANIZADA *N. 22*, ADESIVADA, DE *2,4 X 1,2* M | E55: M2 | F55: 1,0000000 | G55: 250,00 | H55: 250
B56: INSUMO | C56: 4115 | D56: MADEIRA ROLICA TRATADA, D = 12 A 15 CM, EM EUCALIPTO OU EQUIVALENTE DA REGIAO | E56: M | F56: 2 | G56: 21.37 | H56: 42.74
B57: INSUMO | C57: 5065 | D57: PREGO DE ACO POLIDO COM CABECA 10 X 10 (7/8 X 17) | E57: KG | F57: 0,0113000 | G57: 36,57 | H57: 0.41
B58: INSUMO | C58: 5069 | D58: PREGO DE ACO POLIDO COM CABECA 17 X 27 (2 1/2 X 11) | E58: KG | F58: 0,0132000 | G58: 19.59 | H58: 0.25
B59: COMPOSICAO | C59: 88262 | D59: CARPINTEIRO DE FORMAS COM ENCARGOS COMPLEMENTARES | E59: H | F59: 0,3729000 | G59: 27,05 | H59: 10.08
B60: COMPOSICAO | C60: 88316 | D60: SERVENTE COM ENCARGOS COMPLEMENTARES | E60: H | F60: 1,1186000 | G60: 19,76 | H60: 22.1
H61: 0
B62: PRODUÇÃO DA EQUIPE | E62: 1 | F62: CUSTO | H62: =SUM(H54:H61) -> 339.72
B63: TOTAL | H63: =H62/E62 -> 339.72 | I63: OK
B64: BDI % | H64: =1+$M$1 -> 1.2332
B65: TOTAL DO SERVIÇO - R$ | H65: =ROUND(H63*H64,2) -> 418.94
A67: =A49+1 -> 5 | B67: CODEVASF | E67: COMPOSIÇÃO DE PREÇO UNITÁRIO | I67: =H79 -> 0.33 | J67: =H81 -> 0.41
B68: OBRA: | C68: =$C$2 -> PAVIMENTAÇÃO ASFÁLTICA EM CBUQ – AVENIDA SANITÁRIA (BONFIM / MG) - LOTE 3 | G68: DATA: | H68: =$H$2 -> AGOSTO / 2023
B69: SERVIÇO: | C69: =VLOOKUP(A67,ORÇAMENTO!$A$10:$I$31,3) -> SERVIÇOS TOPOGRÁFICOS PARA PAVIMENTAÇÃO, INCLUSIVE NOTA DE SERVIÇO, ACOMPANHAMENTO E GREIDE | E69: SINAPI | F69: =VLOOKUP(A67,ORÇAMENTO!$A$10:$I$31,4) -> 78472 | G69: UNIDADE: | H69: =VLOOKUP(A67,ORÇAMENTO!$A$10:$I$31,5) -> M2
B71: TIPO ITEM | C71: CODIGO ITEM | D71: DESCRIÇÃO ITEM | E71: UNIDADE ITEM | F71: COEFICIENTE | G71: PRECO UNITARIO | H71: CUSTO TOTAL
B72: COMPOSICAO | C72: 88253 | D72: AUXILIAR DE TOPÓGRAFO COM ENCARGOS COMPLEMENTARES | E72: H | F72: 0.0025 | G72: 21.57 | H72: =ROUNDDOWN(F72*G72,2) -> 0.05
B73: COMPOSICAO | C73: 88288 | D73: NIVELADOR COM ENCARGOS COMPLEMENTARES | E73: H | F73: 0.0025 | G73: 26.99 | H73: 0.06
B74: COMPOSICAO | C74: 88316 | D74: SERVENTE COM ENCARGOS COMPLEMENTARES | E74: H | F74: 0.0075 | G74: 19.76 | H74: 0.14
B75: COMPOSICAO | C75: 88597 | D75: DESENHISTA DETALHISTA COM ENCARGOS COMPLEMENTARES | E75: H | F75: 0.002 | G75: 29.72 | H75: 0.05
B76: COMPOSICAO | C76: 92145 | D76: CAMINHONETE CABINE SIMPLES COM MOTOR 1.6 FLEX, CÂMBIO MANUAL, POTÊNCIA 101/104 CV, 2 PORTAS | E76: CHP | F76: 0.0005 | G76: 72.79 | H76: 0.03
H77: 0
B78: PRODUÇÃO DA EQUIPE | E78: 1 | F78: CUSTO | H78: =SUM(H72:H77) -> 0.33
B79: TOTAL | H79: =H78/E78 -> 0.33 | I79: OK
B80: BDI % | H80: =1+$M$1 -> 1.2332
B81: TOTAL DO SERVIÇO - R$ | H81: =ROUND(H79*H80,2) -> 0.41
A83: =A67+1 -> 6 | B83: CODEVASF | E83: COMPOSIÇÃO DE PREÇO UNITÁRIO | I83: =H92 -> 2.03 | J83: =H94 -> 2.5
B84: OBRA: | C84: =$C$2 -> PAVIMENTAÇÃO ASFÁLTICA EM CBUQ – AVENIDA SANITÁRIA (BONFIM / MG) - LOTE 3 | G84: DATA: | H84: =$H$2 -> AGOSTO / 2023
B85: SERVIÇO: | C85: =VLOOKUP(A83,ORÇAMENTO!$A$10:$I$31,3) -> ESCAVAÇÃO HORIZONTAL EM SOLO DE 1A CATEGORIA | E85: SINAPI | F85: =VLOOKUP(A83,ORÇAMENTO!$A$10:$I$31,4) -> 101116 | G85: UNIDADE: | H85: =VLOOKUP(A83,ORÇAMENTO!$A$10:$I$31,5) -> M3
B87: TIPO ITEM | C87: CODIGO ITEM | D87: DESCRIÇÃO ITEM | E87: UNIDADE ITEM | F87: COEFICIENTE | G87: PRECO UNITARIO | H87: CUSTO TOTAL
B88: COMPOSICAO | C88: 5847 | D88: TRATOR DE ESTEIRAS, POTÊNCIA 170 HP, PESO OPERACIONAL 19 T, CAÇAMBA 5,2 M3 | E88: CHP | F88: 0,0048000 | G88: 231.82 | H88: =ROUNDDOWN(F88*G88,2) -> 1.11
B89: COMPOSICAO | C89: 5849 | D89: TRATOR DE ESTEIRAS, POTÊNCIA 170 HP, PESO OPERACIONAL 19 T, CAÇAMBA 5,2 M3 | E89: CHI | F89: 0,0082000 | G89: 82.14 | H89: =ROUNDDOWN(F89*G89,2) -> 0.67
B90: COMPOSICAO | C90: 88316 | D90: SERVENTE COM ENCARGOS COMPLEMENTARES | E90: H | F90: 0,0131000 | G90: 19,76 | H90: =ROUNDDOWN(F90*G90,2) -> 0.25
B91: PRODUÇÃO DA EQUIPE | E91: 1 | F91: CUSTO | H91: =SUM(H88:H90) -> 2.03
B92: TOTAL | H92: =H91/E91 -> 2.03 | I92: OK
B93: BDI % | H93: =1+$M$1 -> 1.2332
B94: TOTAL DO SERVIÇO - R$ | H94: =ROUND(H92*H93,2) -> 2.5
A96: 7 | B96: CODEVASF | E96: COMPOSIÇÃO DE PREÇO UNITÁRIO | I96: =H106 -> 7.99 | J96: =H108 -> 9.85
B97: OBRA: | C97: =$C$2 -> PAVIMENTAÇÃO ASFÁLTICA EM CBUQ – AVENIDA SANITÁRIA (BONFIM / MG) - LOTE 3 | G97: DATA: | H97: =$H$2 -> AGOSTO / 2023
B98: SERVIÇO: | C98: =VLOOKUP(A96,ORÇAMENTO!$A$10:$I$31,3) -> CARGA, MANOBRA E DESCARGA DE SOLOS E MATERIAIS GRANULARES EM CAMINHÃO BASCULANTE | E98: SINAPI | F98: =VLOOKUP(A96,ORÇAMENTO!$A$10:$I$31,4) -> 100976 | G98: UNIDADE: | H98: =VLOOKUP(A96,ORÇAMENTO!$A$10:$I$31,5) -> M3
B100: TIPO ITEM | C100: CODIGO ITEM | D100: DESCRIÇÃO ITEM | E100: UNIDADE ITEM | F100: COEFICIENTE | G100: PRECO UNITARIO | H100: CUSTO TOTAL
B101: COMPOSICAO | C101: 5940 | D101: PÁ CARREGADEIRA SOBRE RODAS, POTÊNCIA LÍQUIDA 128 HP, CAPACIDADE DA CAÇAMBA 1,7 A 2,8 M3, PESO OPERACIONAL 11632 KG | E101: CHP | F101: 0,0083000 | G101: 205,93 | H101: =ROUNDDOWN(F101*G101,2) -> 1.7
B102: COMPOSICAO | C102: 5942 | D102: PÁ CARREGADEIRA SOBRE RODAS, POTÊNCIA LÍQUIDA 128 HP, CAPACIDADE DA CAÇAMBA 1,7 A 2,8 M3, PESO OPERACIONAL 11632 KG | E102: CHI | F102: 0,0074000 | G102: 90,02 | H102: =ROUNDDOWN(F102*G102,2) -> 0.66
B103: COMPOSICAO | C103: 89883 | D103: CAMINHÃO BASCULANTE 18 M3, COM CAVALO MECÂNICO DE CAPACIDADE MÁXIMA DE TRAÇÃO COMBINADO DE 45000 KG, POTÊNCIA 330 CV, INCLUSIVE SEMIREBOQUE COM CAÇAMBA METÁLICA | E103: CHP | F103: 0,0153000 | G103: 314,64 | H103: =ROUNDDOWN(F103*G103,2) -> 4.81
B104: COMPOSICAO | C104: 89884 | D104: CAMINHÃO BASCULANTE 18 M3, COM CAVALO MECÂNICO DE CAPACIDADE MÁXIMA DE TRAÇÃO COMBINADO DE 45000 KG, POTÊNCIA 330 CV, INCLUSIVE SEMIREBOQUE COM CAÇAMBA METÁLICA | E104: CHI | F104: 0,0095000 | G104: 86,36 | H104: =ROUNDDOWN(F104*G104,2) -> 0.82
B105: PRODUÇÃO DA EQUIPE | E105: 1 | F105: CUSTO | H105: =SUM(H101:H104) -> 7.99
B106: TOTAL | H106: =H105/E105 -> 7.99 | I106: OK
B107: BDI % | H107: =1+$M$1 -> 1.2332
B108: TOTAL DO SERVIÇO - R$ | H108: =ROUND(H106*H107,2) -> 9.85
A110: 7.5 | B110: CODEVASF | E110: COMPOSIÇÃO DE PREÇO UNITÁRIO | I110: =H124 -> 11.54 | J110: =H126 -> 14.23
B111: OBRA: | C111: =$C$2 -> PAVIMENTAÇÃO ASFÁLTICA EM CBUQ – AVENIDA SANITÁRIA (BONFIM / MG) - LOTE 3 | G111: DATA: | H111: =$H$2 -> AGOSTO / 2023
B112: SERVIÇO: | C112: =VLOOKUP(A110,ORÇAMENTO!$A$10:$I$31,3) -> EXECUÇÃO E COMPACTAÇÃO DE ATERRO COM SOLO PREDOMINANTEMENTE ARGILOSO - EXCLUSIVE SOLO, ESCAVAÇÃO, CARGA E TRANSPORTE | E112: SINAPI | F112: =VLOOKUP(A110,ORÇAMENTO!$A$10:$I$31,4) -> 96385 | G112: UNIDADE: | H112: M2
B114: TIPO ITEM | C114: CODIGO ITEM | D114: DESCRIÇÃO ITEM | E114: UNIDADE ITEM | F114: COEFICIENTE | G114: PRECO UNITARIO | H114: CUSTO TOTAL
B115: COMPOSICAO | C115: 5901 | D115: CAMINHÃO PIPA 10.000 L TRUCADO, PESO BRUTO TOTAL 23.000 KG, CARGA ÚTIL MÁXIMA 15.935 KG, DISTÂNCIA ENTRE EIXOS 4,8 M, POTÊNCIA 230 CV, INCLUSIVE TANQUE DE AÇO PARA TRANSPORTE DE ÁGUA | E115: CHP | F115: 0,0040000 | G115: 264,71 | H115: =ROUNDDOWN(F115*G115,2) -> 1.05
B116: COMPOSICAO | C116: 5903 | D116: CAMINHÃO PIPA 10.000 L TRUCADO, PESO BRUTO TOTAL 23.000 KG, CARGA ÚTIL MÁXIMA 15.935 KG, DISTÂNCIA ENTRE EIXOS 4,8 M, POTÊNCIA 230 CV, INCLUSIVE TANQUE DE AÇO PARA TRANSPORTE DE ÁGUA | E116: CHI | F116: 0,0300000 | G116: 67,26 | H116: 2.01
B117: COMPOSICAO | C117: 5932 | D117: MOTONIVELADORA POTÊNCIA BÁSICA LÍQUIDA (PRIMEIRA MARCHA) 125 HP, PESO BRUTO 13032 KG, LARGURA DA LÂMINA DE 3,7 M | E117: CHP | F117: 0,0060000 | G117: 244,89 | H117: 1.46
B118: COMPOSICAO | C118: 5934 | D118: MOTONIVELADORA POTÊNCIA BÁSICA LÍQUIDA (PRIMEIRA MARCHA) 125 HP, PESO BRUTO 13032 KG, LARGURA DA LÂMINA DE 3,7 M | E118: CHI | F118: 0,0270000 | G118: 101,62 | H118: 2.74
B119: COMPOSICAO | C119: 73436 | D119: ROLO COMPACTADOR VIBRATÓRIO PÉ DE CARNEIRO PARA SOLOS, POTÊNCIA 80 HP, PESO OPERACIONAL SEM/COM LASTRO 7,4 / 8,8 T, LARGURA DE TRABALHO 1,68 M | E119: CHP | F119: 0,0100000 | G119: 210,75 | H119: 2.1
B120: COMPOSICAO | C120: 88316 | D120: SERVENTE COM ENCARGOS COMPLEMENTARES | E120: H | F120: 0,0330000 | G120: 19,76 | H120: 0.65
B121: COMPOSICAO | C121: 93244 | D121: ROLO COMPACTADOR VIBRATÓRIO PÉ DE CARNEIRO PARA SOLOS, POTÊNCIA 80 HP, PESO OPERACIONAL SEM/COM LASTRO 7,4 / 8,8 T, LARGURA DE TRABALHO 1,68 M | E121: CHI | F121: 0,0230000 | G121: 66,89 | H121: 1.53
B123: PRODUÇÃO DA EQUIPE | E123: 1 | F123: CUSTO | H123: =SUM(H115:H122) -> 11.54
B124: TOTAL | H124: =H123/E123 -> 11.54 | I124: OK
B125: BDI % | H125: =1+$M$1 -> 1.2332
B126: TOTAL DO SERVIÇO - R$ | H126: =ROUND(H124*H125,2) -> 14.23
A128: 8 | B128: CODEVASF | E128: COMPOSIÇÃO DE PREÇO UNITÁRIO | I128: =H142 -> 1.13 | J128: =H144 -> 1.39
B129: OBRA: | C129: =$C$2 -> PAVIMENTAÇÃO ASFÁLTICA EM CBUQ – AVENIDA SANITÁRIA (BONFIM / MG) - LOTE 3 | G129: DATA: | H129: =$H$2 -> AGOSTO / 2023
B130: SERVIÇO: | C130: =VLOOKUP(A128,ORÇAMENTO!$A$10:$I$31,3) -> REGULARIZAÇÃO E COMPACTAÇÃO DO SUBLEITO | E130: SINAPI | F130: =VLOOKUP(A128,ORÇAMENTO!$A$10:$I$31,4) -> 100577 | G130: UNIDADE: | H130: M2
B132: TIPO ITEM | C132: CODIGO ITEM | D132: DESCRIÇÃO ITEM | E132: UNIDADE ITEM | F132: COEFICIENTE | G132: PRECO UNITARIO | H132: CUSTO TOTAL
B133: COMPOSICAO | C133: 5901 | D133: CAMINHÃO PIPA 10.000 L TRUCADO, PESO BRUTO TOTAL 23.000 KG, CARGA ÚTIL MÁXIMA 15.935 KG, DISTÂNCIA ENTRE EIXOS 4,8 M, POTÊNCIA 230 CV, INCLUSIVE TANQUE DE AÇO PARA TRANSPORTE DE ÁGUA | E133: CHP | F133: 0,0010000 | G133: 264,71 | H133: =ROUNDDOWN(F133*G133,2) -> 0.26
B134: COMPOSICAO | C134: 5903 | D134: CAMINHÃO PIPA 10.000 L TRUCADO, PESO BRUTO TOTAL 23.000 KG, CARGA ÚTIL MÁXIMA 15.935 KG, DISTÂNCIA ENTRE EIXOS 4,8 M, POTÊNCIA 230 CV, INCLUSIVE TANQUE DE AÇO PARA TRANSPORTE DE ÁGUA | E134: CHI | F134: 0,0020000 | G134: 67,26 | H134: 0.13
B135: COMPOSICAO | C135: 5932 | D135: MOTONIVELADORA POTÊNCIA BÁSICA LÍQUIDA (PRIMEIRA MARCHA) 125 HP, PESO BRUTO 13032 KG, LARGURA DA LÂMINA DE 3,7 M | E135: CHP | F135: 0,0001000 | G135: 244,89 | H135: 0.02
B136: COMPOSICAO | C136: 5934 | D136: MOTONIVELADORA POTÊNCIA BÁSICA LÍQUIDA (PRIMEIRA MARCHA) 125 HP, PESO BRUTO 13032 KG, LARGURA DA LÂMINA DE 3,7 M | E136: CHI | F136: 0,0030000 | G136: 101,62 | H136: 0.3
B137: COMPOSICAO | C137: 88316 | D137: SERVENTE COM ENCARGOS COMPLEMENTARES | E137: H | F137: 0,0030000 | G137: 19,76 | H137: 0.05
B138: COMPOSICAO | C138: 96463 | D138: ROLO COMPACTADOR DE PNEUS, ESTATICO, PRESSAO VARIAVEL, POTENCIA 110 HP, PESO SEM/COM LASTRO 10,8/27 T, LARGURA DE ROLAGEM 2,30 M | E138: CHP | F138: 0,0010000 | G138: 203,13 | H138: 0.2
B139: COMPOSICAO | C139: 96464 | D139: ROLO COMPACTADOR DE PNEUS, ESTATICO, PRESSAO VARIAVEL, POTENCIA 110 HP, PESO SEM/COM LASTRO 10,8/27 T, LARGURA DE ROLAGEM 2,30 M | E139: CHI | F139: 0,0020000 | G139: 89,07 | H139: 0.17
B141: PRODUÇÃO DA EQUIPE | E141: 1 | F141: CUSTO | H141: =SUM(H133:H140) -> 1.13
B142: TOTAL | H142: =H141/E141 -> 1.13 | I142: OK
B143: BDI % | H143: =1+$M$1 -> 1.2332
B144: TOTAL DO SERVIÇO - R$ | H144: =ROUND(H142*H143,2) -> 1.39
A146: 9 | B146: CODEVASF | E146: COMPOSIÇÃO DE PREÇO UNITÁRIO | I146: =H161 -> 11.61 | J146: =H163 -> 14.32
B147: OBRA: | C147: =$C$2 -> PAVIMENTAÇÃO ASFÁLTICA EM CBUQ – AVENIDA SANITÁRIA (BONFIM / MG) - LOTE 3 | G147: DATA: | H147: =$H$2 -> AGOSTO / 2023
B148: SERVIÇO: | C148: =VLOOKUP(A146,ORÇAMENTO!$A$10:$I$31,3) -> EXECUÇÃO E COMPACTAÇÃO DE BASE E/OU SUB BASE PARA PAVIMENTAÇÃO DE SOLOS DE COMPORTAMENTO LATERÍTICO - EXCLUSIVE SOLO, ESCAVAÇÃO, CARGA E TRANSPORTE | E148: SINAPI | F148: =VLOOKUP(A146,ORÇAMENTO!$A$10:$I$31,4) -> 96388 | G148: UNIDADE: | H148: =VLOOKUP(A146,ORÇAMENTO!$A$10:$I$31,5) -> M3
B150: TIPO ITEM | C150: CODIGO ITEM | D150: DESCRIÇÃO ITEM | E150: UNIDADE ITEM | F150: COEFICIENTE | G150: PRECO UNITARIO | H150: CUSTO TOTAL
B151: COMPOSICAO | C151: 5684 | D151: ROLO COMPACTADOR VIBRATÓRIO DE UM CILINDRO AÇO LISO, POTÊNCIA 80 HP, PESO OPERACIONAL MÁXIMO 8,1 T, IMPACTO DINÂMICO 16,15 / 9,5 T, LARGURA DE TRABALHO 1,68 M | E151: CHP | F151: 0,0030000 | G151: 148,46 | H151: =ROUNDDOWN(F151*G151,2) -> 0.44
B152: COMPOSICAO | C152: 5685 | D152: ROLO COMPACTADOR VIBRATÓRIO DE UM CILINDRO AÇO LISO, POTÊNCIA 80 HP, PESO OPERACIONAL MÁXIMO 8,1 T, IMPACTO DINÂMICO 16,15 / 9,5 T, LARGURA DE TRABALHO 1,68 M | E152: CHI | F152: 0,0230000 | G152: 65,46 | H152: 1.5
B153: COMPOSICAO | C153: 5901 | D153: CAMINHÃO PIPA 10.000 L TRUCADO, PESO BRUTO TOTAL 23.000 KG, CARGA ÚTIL MÁXIMA 15.935 KG, DISTÂNCIA ENTRE EIXOS 4,8 M, POTÊNCIA 230 CV, INCLUSIVE TANQUE DE AÇO PARA TRANSPORTE DE ÁGUA | E153: CHP | F153: 0,0040000 | G153: 264,71 | H153: 1.05
B154: COMPOSICAO | C154: 5903 | D154: CAMINHÃO PIPA 10.000 L TRUCADO, PESO BRUTO TOTAL 23.000 KG, CARGA ÚTIL MÁXIMA 15.935 KG, DISTÂNCIA ENTRE EIXOS 4,8 M, POTÊNCIA 230 CV, INCLUSIVE TANQUE DE AÇO PARA TRANSPORTE DE ÁGUA | E154: CHI | F154: 0,0220000 | G154: 67,26 | H154: 1.47
B155: COMPOSICAO | C155: 5932 | D155: MOTONIVELADORA POTÊNCIA BÁSICA LÍQUIDA (PRIMEIRA MARCHA) 125 HP, PESO BRUTO 13032 KG, LARGURA DA LÂMINA DE 3,7 M | E155: CHP | F155: 0,0080000 | G155: 244,89 | H155: 1.95
B156: COMPOSICAO | C156: 5934 | D156: MOTONIVELADORA POTÊNCIA BÁSICA LÍQUIDA (PRIMEIRA MARCHA) 125 HP, PESO BRUTO 13032 KG, LARGURA DA LÂMINA DE 3,7 M | E156: CHI | F156: 0,0190000 | G156: 101,62 | H156: 1.93
B157: COMPOSICAO | C157: 88316 | D157: SERVENTE COM ENCARGOS COMPLEMENTARES | E157: H | F157: 0,0260000 | G157: 19,76 | H157: 0.51
B158: COMPOSICAO | C158: 96463 | D158: ROLO COMPACTADOR DE PNEUS, ESTATICO, PRESSAO VARIAVEL, POTENCIA 110 HP, PESO SEM/COM LASTRO 10,8/27 T, LARGURA DE ROLAGEM 2,30 M | E158: CHP | F158: 0,0040000 | G158: 203,13 | H158: 0.81
B159: COMPOSICAO | C159: 96464 | D159: ROLO COMPACTADOR DE PNEUS, ESTATICO, PRESSAO VARIAVEL, POTENCIA 110 HP, PESO SEM/COM LASTRO 10,8/27 T, LARGURA DE ROLAGEM 2,30 M | E159: CHI | F159: 0,0220000 | G159: 89,07 | H159: 1.95
B160: PRODUÇÃO DA EQUIPE | E160: 1 | F160: CUSTO | H160: =SUM(H151:H159) -> 11.61
B161: TOTAL | H161: =H160/E160 -> 11.61 | I161: OK
B162: BDI % | H162: =1+$M$1 -> 1.2332
B163: TOTAL DO SERVIÇO - R$ | H163: =ROUND(H161*H162,2) -> 14.32
A165: 10 | B165: CODEVASF | E165: COMPOSIÇÃO DE PREÇO UNITÁRIO | I165: =H180 -> 1.12 | J165: =H182 -> 1.38
B166: OBRA: | C166: =$C$2 -> PAVIMENTAÇÃO ASFÁLTICA EM CBUQ – AVENIDA SANITÁRIA (BONFIM / MG) - LOTE 3 | G166: DATA: | H166: =$H$2 -> AGOSTO / 2023
B167: SERVIÇO: | C167: =VLOOKUP(A165,ORÇAMENTO!$A$10:$I$31,3) -> IMPRIMAÇÃO COM EMULSÃO ASFÁLTICA (EAI) | E167: SINAPI | F167: =VLOOKUP(A165,ORÇAMENTO!$A$10:$I$31,4) -> 96401 | G167: UNIDADE: | H167: =VLOOKUP(A165,ORÇAMENTO!$A$10:$I$31,5) -> M2
B169: TIPO ITEM | C169: CODIGO ITEM | D169: DESCRIÇÃO ITEM | E169: UNIDADE ITEM | F169: COEFICIENTE | G169: PRECO UNITARIO | H169: CUSTO TOTAL
B170: COMPOSICAO | C170: 5839 | D170: VASSOURA MECÂNICA REBOCÁVEL COM ESCOVA CILÍNDRICA, LARGURA ÚTIL DE VARRIMENTO DE 2,44 M | E170: CHP | F170: 0,0020000 | G170: 9.77 | H170: =ROUNDDOWN(F170*G170,2) -> 0.01
B171: COMPOSICAO | C171: 5841 | D171: VASSOURA MECÂNICA REBOCÁVEL COM ESCOVA CILÍNDRICA, LARGURA ÚTIL DE VARRIMENTO DE 2,44 M | E171: CHI | F171: 0,0040000 | G171: 4.65 | H171: 0.01
B172: INSUMO | C172: ANP | D172: EMULSÃO ASFÁLTICA PARA IMPRIMAÇÃO - EAI (FORNECIMENTO COM BDI DIFERENCIADO) | E172: T | F172: =1.3/1000 -> 0.0013 | H172: 0
B173: COMPOSICAO | C173: 83362 | D173: ESPARGIDOR DE ASFALTO PRESSURIZADO, TANQUE 6 M3 COM ISOLAÇÃO TÉRMICA, AQUECIDO COM 2 MAÇARICOS, COM BARRA ESPARGIDORA 3,60 M, MONTADO SOBRE CAMINHÃO TOCO, PBT 14.300 KG, POTÊNCIA 185 CV | E173: CHP | F173: 0,0010000 | G173: 232.92 | H173: 0.23
B174: COMPOSICAO | C174: 88316 | D174: SERVENTE COM ENCARGOS COMPLEMENTARES | E174: H | F174: 0,0060000 | G174: 19.76 | H174: 0.11
B175: COMPOSICAO | C175: 89035 | D175: TRATOR DE PNEUS, POTÊNCIA 85 CV, TRAÇÃO 4X4, PESO COM LASTRO DE 4.675 KG | E175: CHP | F175: 0,0020000 | G175: 119.96 | H175: 0.23
B176: COMPOSICAO | C176: 89036 | D176: TRATOR DE PNEUS, POTÊNCIA 85 CV, TRAÇÃO 4X4, PESO COM LASTRO DE 4.675 KG | E176: CHI | F176: 0,0040000 | G176: 52.19 | H176: 0.2
B177: COMPOSICAO | C177: 91486 | D177: ESPARGIDOR DE ASFALTO PRESSURIZADO, TANQUE 6 M3 COM ISOLAÇÃO TÉRMICA, AQUECIDO COM 2 MAÇARICOS, COM BARRA ESPARGIDORA 3,60 M, MONTADO SOBRE CAMINHÃO TOCO, PBT 14.300 KG, POTÊNCIA 185 CV | E177: CHI | F177: 0,0050000 | G177: 66.18 | H177: 0.33
H178: 0
B179: PRODUÇÃO DA EQUIPE | E179: 1 | F179: CUSTO | H179: =SUM(H170:H178) -> 1.12
B180: TOTAL | H180: =H179/E179 -> 1.12 | I180: OK
B181: BDI % | H181: =1+$M$1 -> 1.2332
B182: TOTAL DO SERVIÇO - R$ | H182: =ROUND(H180*H181,2) -> 1.38
A184: 11 | B184: CODEVASF | E184: COMPOSIÇÃO DE PREÇO UNITÁRIO | I184: =H199 -> 0.93 | J184: =H201 -> 1.15
B185: OBRA: | C185: =$C$2 -> PAVIMENTAÇÃO ASFÁLTICA EM CBUQ – AVENIDA SANITÁRIA (BONFIM / MG) - LOTE 3 | G185: DATA: | H185: =$H$2 -> AGOSTO / 2023
B186: SERVIÇO: | C186: =VLOOKUP(A184,ORÇAMENTO!$A$10:$I$31,3) -> PINTURA DE LIGAÇÃO COM EMULSÃO ASFÁLTICA RR-1C | E186: SINAPI | F186: =VLOOKUP(A184,ORÇAMENTO!$A$10:$I$31,4) -> 96402 | G186: UNIDADE: | H186: M2
B188: TIPO ITEM | C188: CODIGO ITEM | D188: DESCRIÇÃO ITEM | E188: UNIDADE ITEM | F188: COEFICIENTE | G188: PRECO UNITARIO | H188: CUSTO TOTAL
B189: COMPOSICAO | C189: 5839 | D189: VASSOURA MECÂNICA REBOCÁVEL COM ESCOVA CILÍNDRICA, LARGURA ÚTIL DE VARRIMENTO DE 2,44 M | E189: CHP | F189: 0,0020000 | G189: 9.77 | H189: =ROUNDDOWN(F189*G189,2) -> 0.01
B190: COMPOSICAO | C190: 5841 | D190: VASSOURA MECÂNICA REBOCÁVEL COM ESCOVA CILÍNDRICA, LARGURA ÚTIL DE VARRIMENTO DE 2,44 M | E190: CHI | F190: 0,0040000 | G190: 4.65 | H190: 0.01
B191: INSUMO | C191: 41903 | D191: EMULSAO ASFALTICA CATIONICA RR-1C PARA USO EM PAVIMENTACAO ASFALTICA (FORNECIMENTO COM BDI DIFERENCIADO) | E191: KG | F191: 0,4500000 | H191: 0
B192: COMPOSICAO | C192: 83362 | D192: ESPARGIDOR DE ASFALTO PRESSURIZADO, TANQUE 6 M3 COM ISOLAÇÃO TÉRMICA, AQUECIDO COM 2 MAÇARICOS, COM BARRA ESPARGIDORA 3,60 M, MONTADO SOBRE CAMINHÃO TOCO, PBT 14.300 KG, POTÊNCIA 185 CV | E192: CHP | F192: 0,0004000 | G192: 232.92 | H192: 0.09
B193: COMPOSICAO | C193: 88316 | D193: SERVENTE COM ENCARGOS COMPLEMENTARES | E193: H | F193: 0,0055000 | G193: 19.76 | H193: 0.1
B194: COMPOSICAO | C194: 89035 | D194: TRATOR DE PNEUS, POTÊNCIA 85 CV, TRAÇÃO 4X4, PESO COM LASTRO DE 4.675 KG | E194: CHP | F194: 0,0017000 | G194: 119.96 | H194: 0.2
B195: COMPOSICAO | C195: 89036 | D195: TRATOR DE PNEUS, POTÊNCIA 85 CV, TRAÇÃO 4X4, PESO COM LASTRO DE 4.675 KG | E195: CHI | F195: 0,0038000 | G195: 52.19 | H195: 0.19
B196: COMPOSICAO | C196: 91486 | D196: ESPARGIDOR DE ASFALTO PRESSURIZADO, TANQUE 6 M3 COM ISOLAÇÃO TÉRMICA, AQUECIDO COM 2 MAÇARICOS, COM BARRA ESPARGIDORA 3,60 M, MONTADO SOBRE CAMINHÃO TOCO, PBT 14.300 KG, POTÊNCIA 185 CV | E196: CHI | F196: 0,0051000 | G196: 66.18 | H196: 0.33
H197: 0
B198: PRODUÇÃO DA EQUIPE | E198: 1 | F198: CUSTO | H198: =SUM(H189:H197) -> 0.93
B199: TOTAL | H199: =H198/E198 -> 0.93 | I199: OK
B200: BDI % | H200: =1+$M$1 -> 1.2332
B201: TOTAL DO SERVIÇO - R$ | H201: =ROUND(H199*H200,2) -> 1.15
A203: 12 | B203: CODEVASF | E203: COMPOSIÇÃO DE PREÇO UNITÁRIO | I203: =H221 -> 121.32 | J203: =H223 -> 149.61
B204: OBRA: | C204: =$C$2 -> PAVIMENTAÇÃO ASFÁLTICA EM CBUQ – AVENIDA SANITÁRIA (BONFIM / MG) - LOTE 3 | G204: DATA: | H204: =$H$2 -> AGOSTO / 2023
B205: SERVIÇO: | C205: =VLOOKUP(A203,ORÇAMENTO!$A$10:$I$31,3) -> EXECUÇÃO DE PAVIMENTO COM APLICAÇÃO DE CONCRETO ASFÁLTICO USINADO A QUENTE (CBUQ), CAMADA DE ROLAMENTO - EXCLUSIVE TRANSPORTE | E205: SINAPI | F205: =VLOOKUP(A203,ORÇAMENTO!$A$10:$I$31,4) -> 95995 | G205: UNIDADE: | H205: =VLOOKUP(A203,ORÇAMENTO!$A$10:$I$31,5) -> M3
B207: TIPO ITEM | C207: CODIGO ITEM | D207: DESCRIÇÃO ITEM | E207: UNIDADE ITEM | F207: COEFICIENTE | G207: PRECO UNITARIO | H207: CUSTO TOTAL
B208: INSUMO | C208: 1518 | D208: CONCRETO BETUMINOSO USINADO A QUENTE (CBUQ) PARA PAVIMENTACAO ASFALTICA, PADRAO DNIT, FAIXA C, COM CAP 50/70 - AQUISICAO POSTO USINA | E208: T | F208: 2,5548000 | H208: =ROUNDDOWN(F208*G208,2) -> 0
B209: COMPOSICAO | C209: 5835 | D209: VIBROACABADORA DE ASFALTO SOBRE ESTEIRAS, LARGURA DE PAVIMENTAÇÃO 1,90 M A 5,30 M, POTÊNCIA 105 HP CAPACIDADE 450 T/H | E209: CHP | F209: 0,0464000 | G209: 366,49 | H209: 17
B210: COMPOSICAO | C210: 5837 | D210: VIBROACABADORA DE ASFALTO SOBRE ESTEIRAS, LARGURA DE PAVIMENTAÇÃO 1,90 M A 5,30 M, POTÊNCIA 105 HP CAPACIDADE 450 T/H | E210: CHI | F210: 0,0949000 | G210: 147,82 | H210: 14.02
B211: COMPOSICAO | C211: 88314 | D211: RASTELEIRO COM ENCARGOS COMPLEMENTARES | E211: H | F211: 1,1301000 | G211: 26,52 | H211: 29.97
B212: COMPOSICAO | C212: 91386 | D212: CAMINHÃO BASCULANTE 10 M3, TRUCADO CABINE SIMPLES, PESO BRUTO TOTAL 23.000 KG, CARGA ÚTIL MÁXIMA 15.935 KG, DISTÂNCIA ENTRE EIXOS 4,80 M, POTÊNCIA 230 CV INCLUSIVE CAÇAMBA METÁLICA | E212: CHP | F212: 0,0464000 | G212: 228,50 | H212: 10.6
B213: COMPOSICAO | C213: 95631 | D213: ROLO COMPACTADOR VIBRATORIO TANDEM, ACO LISO, POTENCIA 125 HP, PESO SEM/COM LASTRO 10,20/11,65 T, LARGURA DE TRABALHO 1,73 M | E213: CHP | F213: 0,0805000 | G213: 210,29 | H213: 16.92
B214: COMPOSICAO | C214: 95632 | D214: ROLO COMPACTADOR VIBRATORIO TANDEM, ACO LISO, POTENCIA 125 HP, PESO SEM/COM LASTRO 10,20/11,65 T, LARGURA DE TRABALHO 1,73 M | E214: CHI | F214: 0,0607000 | G214: 83,23 | H214: 5.05
B215: COMPOSICAO | C215: 96155 | D215: TRATOR DE PNEUS COM POTÊNCIA DE 85 CV, TRAÇÃO 4X4, COM VASSOURA MECÂNICA ACOPLADA | E215: CHI | F215: 0,1071000 | G215: 56,63 | H215: 6.06
B216: COMPOSICAO | C216: 96157 | D216: TRATOR DE PNEUS COM POTÊNCIA DE 85 CV, TRAÇÃO 4X4, COM VASSOURA MECÂNICA ACOPLADA | E216: CHP | F216: 0,0341000 | G216: 128,67 | H216: 4.38
B217: COMPOSICAO | C217: 96463 | D217: ROLO COMPACTADOR DE PNEUS, ESTATICO, PRESSAO VARIAVEL, POTENCIA 110 HP, PESO SEM/COM LASTRO 10,8/27 T, LARGURA DE ROLAGEM 2,30 M | E217: CHP | F217: 0,0419000 | G217: 203,13 | H217: 8.51
B218: COMPOSICAO | C218: 96464 | D218: ROLO COMPACTADOR DE PNEUS, ESTATICO, PRESSAO VARIAVEL, POTENCIA 110 HP, PESO SEM/COM LASTRO 10,8/27 T, LARGURA DE ROLAGEM 2,30 M | E218: CHI | F218: 0,0990000 | G218: 89,07 | H218: 8.81
H219: 0
B220: PRODUÇÃO DA EQUIPE | E220: 1 | F220: CUSTO | H220: =SUM(H208:H219) -> 121.32
B221: TOTAL | H221: =H220/E220 -> 121.32 | I221: OK
B222: BDI % | H222: =1+$M$1 -> 1.2332
B223: TOTAL DO SERVIÇO - R$ | H223: =ROUND(H221*H222,2) -> 149.61
A225: 13 | B225: CODEVASF | E225: COMPOSIÇÃO DE PREÇO UNITÁRIO | I225: =H234 -> 1.61 | J225: =H236 -> 1.99
B226: OBRA: | C226: =$C$2 -> PAVIMENTAÇÃO ASFÁLTICA EM CBUQ – AVENIDA SANITÁRIA (BONFIM / MG) - LOTE 3 | G226: DATA: | H226: =$H$2 -> AGOSTO / 2023
B227: SERVIÇO: | C227: =VLOOKUP(A225,ORÇAMENTO!$A$10:$I$31,3) -> TRANSPORTE COM CAMINHÃO BASCULANTE, EM VIA URBANA PAVIMENTADA | E227: SINAPI | F227: =VLOOKUP(A225,ORÇAMENTO!$A$10:$I$31,4) -> 95877 | G227: UNIDADE: | H227: =VLOOKUP(A225,ORÇAMENTO!$A$10:$I$31,5) -> M3XKM
B229: TIPO ITEM | C229: CODIGO ITEM | D229: DESCRIÇÃO ITEM | E229: UNIDADE ITEM | F229: COEFICIENTE | G229: PRECO UNITARIO | H229: CUSTO TOTAL
... 149 more rows

Sheet BDI SERV
B1: DETALHAMENTO DO BDI - SERVIÇOS
B4: Item | C4: Descrição dos Serviços | D4: % | E4: %
D5: PV | E5: CD
B7: 1 | C7: ADMINISTRAÇÃO CENTRAL | E7: 4.01
B8: 1.1 | C8: ESCRITÓRIO CENTRAL
B9: 1.2 | C9: VIAGENS
B10: 1.3 | C10: OUTROS
B12: 2 | C12: IMPOSTOS E TAXAS | D12: =SUM(D13:D16) -> 7.65 | E12: =SUM(E13:E16) -> 9.57
B13: 2.1 | C13: ISS (*) | D13: =5*0.8 -> 4 | E13: =ROUND(D13*1.2515,2) -> 5.01
B14: 2.2 | C14: PIS | D14: 0.65 | E14: =ROUND(D14*1.2515,2) -> 0.81
B15: 2.3 | C15: Cofins | D15: 3 | E15: =ROUND(D15*1.2515,2) -> 3.75
B16: 2.4 | C16: CONTRIBUIÇÃO PREVIDENCIÁRIA SOBRE A RENDA BRUTA | D16: 0 | E16: =ROUND(D16*1.2515,2) -> 0
B18: 3 | C18: TAXA DE RISCO | E18: =SUM(E19:E22) -> 0.96
B19: 3.1 | C19: SEGURO | E19: 0.2
B20: 3.2 | C20: RISCO | E20: 0.56
B21: 3.3 | C21: GARANTIA | E21: 0.2
T22: =1/0.82 -> 1.219512195
B23: 4 | C23: DESPESAS FINANCEIRAS | E23: 1.11
B25: 5 | C25: LUCRO | E25: 7.3
C27: BDI - CALCULADO | E27: =ROUND((((1+(E7+E18)/100)*(1+E23/100)*(1+E25/100)/(1-D12/100)-1)*100),2) -> 23.32
A29: BDI = ((1+((AC+S+R+G)/100))x(1+DF/100)x(1+L/100)/(1-I/100)-1)*100
B31: BDI (CALCULADO): | D31: =ROUND((((1+((E7+E18)/100))*(1+E23/100)*(1+E25/100))/(1-D12/100)-1)*100,2) -> 23.32 | E31: %
A33: (*) ISS CONFORME LEI COMPLEMENTAR Nº 016/2005 - CONSIDERANDO A DEDUÇÃO DOS MATERIAIS PREVISTOS NO ART. 115 (QUANT. ESTIMADA: 20%)
A37: BDI EM CONFORMIDADE COM OS ACÓRDÃOS Nº 2369/2011 e ACÓRDÃO Nº 2.622/2013 - TCU - PLENÁRIO

Sheet BDI FORN
B1: DETALHAMENTO DO BDI - FORNECIMENTO (MATERIAL ASFÁLTICO)
B4: Item | C4: Descrição dos Serviços | D4: % | E4: %
D5: PV | E5: CD
B7: 1 | C7: ADMINISTRAÇÃO CENTRAL | E7: 3.72
B8: 1.1 | C8: ESCRITÓRIO CENTRAL
B9: 1.2 | C9: VIAGENS
B10: 1.3 | C10: OUTROS
B12: 2 | C12: IMPOSTOS E TAXAS | D12: =SUM(D13:D16) -> 3.65 | E12: =SUM(E13:E16) -> 4.56
B13: 2.1 | C13: ISS (*) | E13: =ROUND(D13*1.2515,2) -> 0
B14: 2.2 | C14: PIS | D14: 0.65 | E14: =ROUND(D14*1.2515,2) -> 0.81
B15: 2.3 | C15: Cofins | D15: 3 | E15: =ROUND(D15*1.2515,2) -> 3.75
B16: 2.4 | C16: CONTRIBUIÇÃO PREVIDENCIÁRIA SOBRE A RENDA BRUTA | D16: 0 | E16: =ROUND(D16*1.2515,2) -> 0
B18: 3 | C18: TAXA DE RISCO | E18: =SUM(E19:E22) -> 0.82
B19: 3.1 | C19: SEGURO | E19: 0.16
B20: 3.2 | C20: RISCO | E20: 0.5
B21: 3.3 | C21: GARANTIA | E21: 0.16
B23: 4 | C23: DESPESAS FINANCEIRAS | E23: 0.94
B25: 5 | C25: LUCRO | E25: 5
C27: BDI - CALCULADO | E27: =ROUND((((1+(E7+E18)/100)*(1+E23/100)*(1+E25/100)/(1-D12/100)-1)*100),2) -> 15
A29: BDI = ((1+((AC+S+R+G)/100))x(1+DF/100)x(1+L/100)/(1-I/100)-1)*100
B31: BDI (CALCULADO): | D31: =ROUND((((1+((E7+E18)/100))*(1+E23/100)*(1+E25/100))/(1-D12/100)-1)*100,2) -> 15 | E31: %
A37: BDI EM CONFORMIDADE COM OS ACÓRDÃOS Nº 2369/2011 e ACÓRDÃO Nº 2.622/2013 - TCU - PLENÁRIO

Sheet CRONOGRAMA
B1: CRONOGRAMA FÍSICO-FINANCEIRO
B2: OBRA: | C2: =ORÇAMENTO!C5 -> PAVIMENTAÇÃO ASFÁLTICA EM CBUQ – AVENIDA SANITÁRIA (BONFIM / MG) - LOTE 3 | F2: VALOR: | G2: =ORÇAMENTO!I40 -> 982418.29
F3: PRAZO: | G3: 120 DIAS
B5: ITEM | C5: ETAPAS/DESCRIÇAO | D5: FISICO/ FINANCEIRO | E5: TOTAL ETAPAS | F5: MÊS 1 | G5: MÊS 2 | H5: MÊS 3 | I5: MÊS 4 | J5: TOTAL
A6: A | B6: =VLOOKUP(A6,ORÇAMENTO!$A$9:$I$40,2) -> 1 | C6: =VLOOKUP(A6,ORÇAMENTO!$A$9:$I$40,3) -> SERVIÇOS PRELIMINARES | D6: FISICO | E6: =ROUND(E7/$G$2,4) -> 0.1272 | F6: 0.25 | G6: 0.25 | H6: 0.25 | I6: 0.25 | J6: =SUM(F6:I6) -> 1
D7: FINANCEIRO | E7: =ORÇAMENTO!I9 -> 125004.35 | F7: =ROUND($E$7*F6,2) -> 31251.09 | G7: 31251.09 | H7: 31251.09 | I7: 31251.09 | J7: =SUM(F7:I7) -> 125004.36
A8: B | B8: =VLOOKUP(A8,ORÇAMENTO!$A$9:$I$40,2) -> 2 | C8: =VLOOKUP(A8,ORÇAMENTO!$A$9:$I$40,3) -> TERRAPLANAGEM E PAVIMENTAÇÃO | D8: FISICO | E8: =ROUND(E9/$G$2,4) -> 0.2769 | F8: 0.2 | G8: 0.4 | H8: 0.4 | I8: 0 | J8: =SUM(F8:I8) -> 1
D9: FINANCEIRO | E9: =ORÇAMENTO!I15 -> 272070.69 | F9: =ROUND($E$9*F8,2) -> 54414.14 | G9: 108828.28 | H9: 108828.28 | I9: 0 | J9: =SUM(F9:I9) -> 272070.7
A10: C | B10: =VLOOKUP(A10,ORÇAMENTO!$A$9:$I$40,2) -> 3 | C10: =VLOOKUP(A10,ORÇAMENTO!$A$9:$I$40,3) -> TRANSPORTE DE MATERIAIS | D10: FISICO | E10: =ROUND(E11/$G$2,4) -> 0.1065 | F10: 0.2 | G10: 0.3 | H10: 0.3 | I10: 0.2 | J10: =SUM(F10:I10) -> 1
D11: FINANCEIRO | E11: =ORÇAMENTO!I24 -> 104665 | F11: =ROUND($E$11*F10,2) -> 20933 | G11: 31399.5 | H11: 31399.5 | I11: 20933 | J11: =SUM(F11:I11)-0.04 -> 104664.96
A12: D | B12: =VLOOKUP(A12,ORÇAMENTO!$A$9:$I$40,2) -> 4 | C12: =VLOOKUP(A12,ORÇAMENTO!$A$9:$I$40,3) -> TRANSPORTE DE MATERIAL ASFÁLTICO (BDI DIFERENCIADO) | D12: FISICO | E12: =ROUND(E13/$G$2,4) -> 0.0232 | F12: 0.2 | G12: 0.4 | H12: 0.4 | I12: 0 | J12: =SUM(F12:I12) -> 1
D13: FINANCEIRO | E13: =ORÇAMENTO!I27 -> 22824 | F13: =ROUND($E$13*F12,2) -> 4564.8 | G13: 9129.6 | H13: 9129.6 | I13: 0 | J13: =SUM(F13:I13)-0.02 -> 22823.98
A14: E | B14: =VLOOKUP(A14,ORÇAMENTO!$A$9:$I$40,2) -> 5 | C14: =VLOOKUP(A14,ORÇAMENTO!$A$9:$I$40,3) -> OBRAS COMPLEMENTARES | D14: FISICO | E14: =ROUND(E15/$G$2,4) -> 0.2187 | F14: 0 | G14: 0.2 | H14: 0.4 | I14: 0.4 | J14: =SUM(F14:I14) -> 1
D15: FINANCEIRO | E15: =ORÇAMENTO!I30 -> 214881.32 | F15: =ROUND($E$15*F14,2) -> 0 | G15: 42976.26 | H15: 85952.53 | I15: 85952.53 | J15: =SUM(F15:I15)-0.02 -> 214881.3
A16: F | B16: =VLOOKUP(A16,ORÇAMENTO!$A$9:$I$40,2) -> 6 | C16: =VLOOKUP(A16,ORÇAMENTO!$A$9:$I$40,3) -> FORNECIMENTOS - MATERIAL ASFÁLTICO (BDI DIFERENCIADO) | D16: FISICO | E16: =ROUND(E17/$G$2,4) -> 0.2473 | F16: 0.2 | G16: 0.4 | H16: 0.4 | I16: 0 | J16: =SUM(F16:I16) -> 1
D17: FINANCEIRO | E17: =ORÇAMENTO!I36 -> 242972.93 | F17: =ROUND($E$17*F16,2) -> 48594.59 | G17: 97189.17 | H17: 97189.17 | I17: 0 | J17: =SUM(F17:I17)-0.02 -> 242972.91
B18: TOTAL | D18: FISICO | E18: =SUM(F18:I18) -> 1.00000002 | F18: =F19/$E$19 -> 0.1626166997 | G18: 0.3265145847 | H18: 0.3702599735 | I18: 0.1406087625 | J18: =SUM(F18:I18) -> 1.00000002
D19: FINANCEIRO | E19: =E11+E9+E7+E13+E17+E15 -> 982418.29 | F19: 159757.62 | G19: 320773.9 | H19: 363750.17 | I19: 138136.62 | J19: =SUM(F19:I19)-0.02 -> 982418.29
B21: OBSERVAÇÕES:
